fUST/lending_fUST_20240904
["ID","MTS","AMOUNT","RATE_DAILY","PERIOD"]
[337152856,1725456737727,-500.0,0.00029041,2]
[337152857,1725456737738,-500.0,0.00029041,2]
[337152858,1725456737750,-500.0,0.00029041,2]
[337152859,1725456737760,-500.0,0.00029041,2]
[337152860,1725456737771,-500.0,0.00029041,2]
[337152861,1725456737780,-887.25,0.00029041,2]
[337152862,1725456737792,-500.0,0.00029041,2]
[337152863,1725456737802,-500.0,0.00029041,2]
[337152864,1725456737812,-500.0,0.00029041,2]
[337152865,1725456737822,-500.0,0.00029041,2]
[337152866,1725456737832,-500.0,0.00029041,2]
[337152867,1725456737841,-758.9,0.00029041,2]
[337152868,1725456737852,-500.0,0.00029041,2]
[337152869,1725456737862,-500.0,0.00029041,2]
[337152870,1725456737871,-425.9,0.00029041,2]
[337152871,1725456737881,-381.53,0.00029041,2]
[337152872,1725456737891,-500.0,0.00029041,2]
[337152873,1725456737902,-480.04105565,0.00029041,2]
[337152874,1725456737913,-500.0,0.00029041,2]
[337152875,1725456737923,-288.89,0.00029041,2]
[337152876,1725456737933,-500.0,0.00029041,2]
[337152877,1725456737943,-572.48,0.00029041,2]
[337152878,1725456737952,-500.0,0.00029041,2]
[337152879,1725456737967,-500.0,0.00029041,2]
[337152880,1725456737977,-500.0,0.00029041,2]
[337152881,1725456737988,-578.21646883,0.00029041,2]
[337152882,1725456738000,-500.0,0.00029041,2]
[337152883,1725456738010,-500.0,0.00029041,2]
[337152884,1725456738020,-300.3075129,0.00029041,2]
[337152885,1725456738031,-500.0,0.00029041,2]
[337152886,1725456738041,-500.0,0.00029041,2]
[337152887,1725456738051,-500.0,0.00029041,2]
[337152888,1725456738061,-500.0,0.00029041,2]
[337152889,1725456738070,-500.0,0.00029041,2]
[337152890,1725456738081,-500.0,0.00029041,2]
[337152891,1725456738090,-500.0,0.00029041,2]
[337152892,1725456738101,-500.0,0.00029041,2]
[337152893,1725456738111,-500.0,0.00029041,2]
[337152894,1725456738122,-500.0,0.00029041,2]
[337152895,1725456738132,-186.35,0.00029041,2]
[337152896,1725456738143,-500.0,0.00029041,2]
[337152897,1725456738153,-500.0,0.00029041,2]
[337152898,1725456738163,-500.0,0.00029041,2]
[337152899,1725456738172,-500.0,0.00029041,2]
[337152900,1725456738183,-500.0,0.00029041,2]
[337152901,1725456738193,-500.0,0.00029041,2]
[337152902,1725456738204,-500.0,0.00029041,2]
[337152903,1725456738217,-500.0,0.00029041,2]
[337152904,1725456738227,-500.0,0.00029041,2]
[337152905,1725456738236,-500.0,0.00029041,2]
[337152906,1725456738246,-500.0,0.00029041,2]
[337152907,1725456738255,-500.0,0.00029041,2]
[337152908,1725456738265,-500.0,0.00029041,2]
[337152909,1725456738276,-500.0,0.00029041,2]
[337152910,1725456738285,-500.0,0.00029041,2]
[337152911,1725456738296,-945.1,0.00029041,2]
[337152912,1725456738511,-215.98095021,0.00029041,2]
[337152913,1725456738521,-500.0,0.00029041,2]
[337152914,1725456738530,-500.0,0.00029041,2]
[337152915,1725456738539,-500.0,0.00029041,2]
[337152916,1725456738549,-1029.49,0.00029041,2]
[337152917,1725456738558,-500.0,0.00029041,2]
[337152918,1725456738568,-500.0,0.00029041,2]
[337152919,1725456738578,-500.0,0.00029041,2]
[337152920,1725456738587,-770.95,0.00029041,2]
[337152921,1725456738597,-500.0,0.00029041,2]
[337152922,1725456738606,-500.0,0.00029041,2]
[337152923,1725456738620,-500.0,0.00029041,2]
[337152924,1725456738630,-500.0,0.00029041,2]
[337152925,1725456738640,-500.0,0.00029041,2]
[337152926,1725456738651,-521.24472548,0.00029041,2]
[337152927,1725456738661,-500.0,0.00029041,2]
[337152928,1725456738671,-500.0,0.00029041,2]
[337152929,1725456738680,-566.62,0.00029041,2]
[337152930,1725456738689,-657.65,0.00029041,2]
[337152931,1725456738699,-500.0,0.00029041,2]
[337152932,1725456738714,-500.0,0.00029041,2]
[337152933,1725456738725,-500.0,0.00029041,2]
[337152934,1725456738735,-500.0,0.00029041,2]
[337152935,1725456738745,-500.0,0.00029041,2]
[337152936,1725456738754,-500.0,0.00029041,2]
[337152937,1725456738764,-500.0,0.00029041,2]
[337152938,1725456738773,-500.0,0.00029041,2]
[337152939,1725456738783,-500.0,0.00029041,2]
[337152940,1725456738792,-863.47,0.00029041,2]
[337152941,1725456738804,-500.0,0.00029041,2]
[337152942,1725456738814,-500.0,0.00029041,2]
[337152943,1725456738824,-500.0,0.00029041,2]
[337152944,1725456738836,-500.0,0.00029041,2]
[337152945,1725456738845,-500.0,0.00029041,2]
[337152946,1725456738855,-500.0,0.00029041,2]
[337152947,1725456738865,-614.65,0.00029041,2]
[337152948,1725456738874,-500.0,0.00029041,2]
[337152949,1725456738884,-500.0,0.00029041,2]
[337152950,1725456738895,-500.0,0.00029041,2]
[337152951,1725456738907,-500.0,0.00029041,2]
[337152952,1725456738916,-500.0,0.00029041,2]
[337152953,1725456738926,-500.0,0.00029041,2]
[337152954,1725456738935,-500.0,0.00029041,2]
[337152955,1725456738947,-518.28292079,0.00029041,2]
[337152956,1725456738959,-500.0,0.00029041,2]
[337152957,1725456738968,-500.0,0.00029041,2]
[337152958,1725456738979,-500.0,0.00029041,2]
[337152959,1725456738989,-500.0,0.00029041,2]
[337152960,1725456738999,-648.68,0.00029041,2]
[337152961,1725456739009,-500.0,0.00029041,2]
[337152962,1725456739019,-500.0,0.00029041,2]
[337152963,1725456739029,-500.0,0.00029041,2]
[337152964,1725456739038,-500.0,0.00029041,2]
[337152965,1725456739049,-578.63118822,0.00029041,2]
[337152966,1725456739058,-500.0,0.00029041,2]
[337152967,1725456739067,-701.69,0.00029041,2]
[337152968,1725456739077,-500.0,0.00029041,2]
[337152969,1725456739086,-500.0,0.00029041,2]
[337152970,1725456739096,-500.0,0.00029041,2]
[337152971,1725456739105,-500.0,0.00029041,2]
[337152972,1725456739115,-500.0,0.00029041,2]
[337152973,1725456739126,-500.0,0.00029041,2]
[337152974,1725456739137,-500.0,0.00029041,2]
[337152975,1725456739147,-500.0,0.00029041,2]
[337152976,1725456739158,-500.0,0.00029041,2]
[337152977,1725456739167,-500.0,0.00029041,2]
[337152978,1725456739177,-500.0,0.00029041,2]
[337152979,1725456739187,-500.0,0.00029041,2]
[337152980,1725456739197,-500.0,0.00029041,2]
[337152981,1725456739210,-500.0,0.00029041,2]
[337152982,1725456739220,-500.0,0.00029041,2]
[337152983,1725456739230,-500.0,0.00029041,2]
[337152984,1725456739239,-578.02,0.00029041,2]
[337152985,1725456739250,-500.0,0.00029041,2]
[337152986,1725456739259,-500.0,0.00029041,2]
[337152987,1725456739269,-500.0,0.00029041,2]
[337152988,1725456739279,-500.0,0.00029041,2]
[337152989,1725456739288,-500.0,0.00029041,2]
[337152990,1725456739298,-500.0,0.00029041,2]
[337152991,1725456739310,-666.45,0.00029041,2]
[337152992,1725456739320,-500.0,0.00029041,2]
[337152993,1725456739330,-500.0,0.00029041,2]
[337152994,1725456739341,-500.0,0.00029041,2]
[337152995,1725456739350,-500.0,0.00029041,2]
[337152996,1725456739360,-500.0,0.00029041,2]
[337152997,1725456739369,-623.51,0.00029041,2]
[337152998,1725456739379,-674.09,0.00029041,2]
[337152999,1725456739389,-574.79,0.00029041,2]
[337153000,1725456739399,-500.0,0.00029041,2]
[337153001,1725456739408,-500.0,0.00029041,2]
[337153002,1725456739418,-604.6,0.00029041,2]
[337153003,1725456739428,-500.0,0.00029041,2]
[337153004,1725456739438,-500.0,0.00029041,2]
[337153005,1725456739447,-500.0,0.00029041,2]
[337153006,1725456739461,-500.0,0.00029041,2]
[337153007,1725456739471,-500.0,0.00029041,2]
[337153008,1725456739482,-222.11964532,0.00029041,2]
[337153009,1725456739492,-500.0,0.00029041,2]
[337153010,1725456739501,-366.42414008,0.00029041,2]
[337153011,1725456739512,-514.02409463,0.00029041,2]
[337153012,1725456739523,-500.0,0.00029041,2]
[337153013,1725456739532,-500.0,0.00029041,2]
[337153014,1725456739542,-500.0,0.00029041,2]
[337153015,1725456739553,-500.0,0.00029041,2]
[337153016,1725456739562,-500.0,0.00029041,2]
[337153017,1725456739572,-500.0,0.00029041,2]
[337153018,1725456739582,-500.0,0.00029041,2]
[337153019,1725456739592,-500.0,0.00029041,2]
[337153020,1725456739602,-500.0,0.00029041,2]
[337153021,1725456739612,-500.0,0.00029041,2]
[337153022,1725456739623,-500.0,0.00029041,2]
[337153023,1725456739633,-500.0,0.00029041,2]
[337153024,1725456739642,-330.19523585,0.00029041,2]
[337153025,1725456739652,-500.0,0.00029041,2]
[337153026,1725456739663,-500.0,0.00029041,2]
[337153027,1725456739673,-500.0,0.00029041,2]
[337153028,1725456739682,-500.0,0.00029041,2]
[337153029,1725456739692,-500.0,0.00029041,2]
[337153030,1725456739701,-500.0,0.00029041,2]
[337153031,1725456739720,-500.0,0.00029041,2]
[337153032,1725456739730,-500.0,0.00029041,2]
[337153033,1725456739739,-500.0,0.00029041,2]
[337153034,1725456739749,-500.0,0.00029041,2]
[337153035,1725456739759,-500.0,0.00029041,2]
[337153036,1725456739769,-500.0,0.00029041,2]
[337153037,1725456739778,-500.0,0.00029041,2]
[337153038,1725456739788,-500.0,0.00029041,2]
[337153039,1725456739798,-500.0,0.00029041,2]
[337153040,1725456739808,-500.0,0.00029041,2]
[337153041,1725456739818,-500.0,0.00029041,2]
[337153042,1725456739828,-500.0,0.00029041,2]
[337153043,1725456739838,-391.20206537,0.00029041,2]
[337153044,1725456739847,-500.0,0.00029041,2]
[337153045,1725456739858,-500.0,0.00029041,2]
[337153046,1725456739868,-500.0,0.00029041,2]
[337153047,1725456739877,-500.0,0.00029041,2]
[337153048,1725456739887,-500.0,0.00029041,2]
[337153049,1725456739897,-847.93,0.00029041,2]
[337153050,1725456739906,-500.0,0.00029041,2]
[337153051,1725456739915,-500.0,0.00029041,2]
[337153052,1725456739925,-500.0,0.00029041,2]
[337153053,1725456739934,-870.2,0.00029041,2]
[337153054,1725456739943,-500.0,0.00029041,2]
[337153055,1725456739952,-500.0,0.00029041,2]
[337153056,1725456739968,-588.10352603,0.00029041,2]
[337153057,1725456739977,-500.0,0.00029041,2]
[337153058,1725456739986,-500.0,0.00029041,2]
[337153059,1725456739996,-500.0,0.00029041,2]
[337153060,1725456740005,-500.0,0.00029041,2]
[337153061,1725456740016,-1991.87,0.00029041,2]
[337153062,1725456740026,-500.0,0.00029041,2]
[337153063,1725456740035,-500.0,0.00029041,2]
[337153064,1725456740045,-465.24,0.00029041,2]
[337153065,1725456740054,-899.14,0.00029041,2]
[337153066,1725456740063,-613.99,0.00029041,2]
[337153067,1725456740072,-500.0,0.00029041,2]
[337153068,1725456740081,-762.62,0.00029041,2]
[337153069,1725456740091,-500.0,0.00029041,2]
[337153070,1725456740101,-500.0,0.00029041,2]
[337153071,1725456740110,-270.53942739,0.00029041,2]
[337153072,1725456740120,-483.62,0.00029041,2]
[337153073,1725456740130,-521.85,0.00029041,2]
[337153074,1725456740140,-500.0,0.00029041,2]
[337153075,1725456740150,-500.0,0.00029041,2]
[337153076,1725456740159,-568.44787611,0.00029041,2]
[337153077,1725456740168,-732.83,0.00029041,2]
[337153078,1725456740177,-500.0,0.00029041,2]
[337153079,1725456740186,-500.0,0.00029041,2]
[337153080,1725456740196,-500.0,0.00029041,2]
[337153081,1725456740205,-500.0,0.00029041,2]
[337153082,1725456740218,-500.0,0.00029041,2]
[337153083,1725456740228,-500.0,0.00029041,2]
[337153084,1725456740238,-500.0,0.00029041,2]
[337153085,1725456740249,-500.0,0.00029041,2]
[337153086,1725456740261,-500.0,0.00029041,2]
[337153087,1725456740270,-500.0,0.00029041,2]
[337153088,1725456740279,-500.0,0.00029041,2]
[337153089,1725456740288,-500.0,0.00029041,2]
[337153090,1725456740299,-500.0,0.00029041,2]
[337153091,1725456740309,-500.0,0.00029041,2]
[337153092,1725456740319,-500.0,0.00029041,2]
[337153093,1725456740329,-500.0,0.00029041,2]
[337153094,1725456740338,-500.0,0.00029041,2]
[337153095,1725456740348,-500.0,0.00029041,2]
[337153096,1725456740357,-500.0,0.00029041,2]
[337153097,1725456740367,-500.0,0.00029041,2]
[337153098,1725456740376,-500.0,0.00029041,2]
[337153099,1725456740386,-500.0,0.00029041,2]
[337153100,1725456740396,-500.0,0.00029041,2]
[337153101,1725456740406,-500.0,0.00029041,2]
[337153102,1725456740415,-500.0,0.00029041,2]
[337153103,1725456740426,-578.18,0.00029041,2]
[337153104,1725456740435,-500.0,0.00029041,2]
[337153105,1725456740445,-500.0,0.00029041,2]
[337153106,1725456740454,-391.72,0.00029041,2]
[337153107,1725456740468,-435.61551981,0.00029041,2]
[337153108,1725456740478,-500.0,0.00029041,2]
[337153109,1725456740487,-452.64,0.00029041,2]
[337153110,1725456740497,-500.0,0.00029041,2]
[337153111,1725456740506,-398.46,0.00029041,2]
[337153112,1725456740515,-500.0,0.00029041,2]
[337153113,1725456740526,-500.0,0.00029041,2]
[337153114,1725456740536,-500.0,0.00029041,2]
[337153115,1725456740547,-500.0,0.00029041,2]
[337153116,1725456740556,-500.0,0.00029041,2]
[337153117,1725456740567,-500.0,0.00029041,2]
[337153118,1725456740576,-500.0,0.00029041,2]
[337153119,1725456740587,-2003.71,0.00029041,2]
[337153120,1725456740597,-500.0,0.00029041,2]
[337153121,1725456740608,-500.0,0.00029041,2]
[337153122,1725456740621,-500.0,0.00029041,2]
[337153123,1725456740633,-500.0,0.00029041,2]
[337153124,1725456740643,-399.14,0.00029041,2]
[337153125,1725456740654,-500.0,0.00029041,2]
[337153126,1725456740664,-576.04,0.00029041,2]
[337153127,1725456740674,-1205.94,0.00029041,2]
[337153128,1725456740683,-491.87,0.00029041,2]
[337153129,1725456740695,-500.0,0.00029041,2]
[337153130,1725456740707,-500.0,0.00029041,2]
[337153131,1725456740720,-500.0,0.00029041,2]
[337153132,1725456740731,-455.12,0.00029041,2]
[337153133,1725456740741,-500.0,0.00029041,2]
[337153134,1725456740752,-526.12,0.00029041,2]
[337153135,1725456740761,-518.5,0.00029041,2]
[337153136,1725456740770,-500.0,0.00029041,2]
[337153137,1725456740780,-500.0,0.00029041,2]
[337153138,1725456740789,-500.0,0.00029041,2]
[337153139,1725456740799,-566.58,0.00029041,2]
[337153140,1725456740808,-500.0,0.00029041,2]
[337153141,1725456740817,-500.0,0.00029041,2]
[337153142,1725456740826,-500.0,0.00029041,2]
[337153143,1725456740835,-500.0,0.00029041,2]
[337153144,1725456740844,-912.72,0.00029041,2]
[337153145,1725456740854,-500.0,0.00029041,2]
[337153146,1725456740863,-500.0,0.00029041,2]
[337153147,1725456740877,-500.0,0.00029041,2]
[337153148,1725456740887,-500.0,0.00029041,2]
[337153149,1725456740966,-500.0,0.00029041,2]
[337153150,1725456740976,-500.0,0.00029041,2]
[337153151,1725456740985,-500.0,0.00029041,2]
[337153152,1725456740994,-1228.0,0.00029041,2]
[337153153,1725456741005,-500.0,0.00029041,2]
[337153154,1725456741015,-954.3,0.00029041,2]
[337153155,1725456741025,-1417.83,0.00029041,2]
[337153156,1725456741035,-1493.78,0.00029041,2]
[337153157,1725456741044,-591.49,0.00029041,2]
[337153158,1725456741053,-711.92,0.00029041,2]
[337153159,1725456741062,-1275.87,0.00029041,2]
[337153160,1725456741072,-2668.56,0.00029041,2]
[337153161,1725456741081,-1035.91,0.00029041,2]
[337153162,1725456741090,-1248.71,0.00029041,2]
[337153163,1725456741100,-967.05,0.00029041,2]
[337153164,1725456741109,-2693.21,0.00029041,2]
[337153165,1725456741118,-1338.09,0.00029041,2]
[337153166,1725456741127,-1107.58,0.00029041,2]
[337153167,1725456741137,-500.0,0.00029041,2]
[337153168,1725456741146,-4246.41,0.00029041,2]
[337153169,1725456741155,-1107.23,0.00029041,2]
[337153170,1725456741165,-1365.5,0.00029041,2]
[337153171,1725456741174,-1532.75,0.00029041,2]
[337153172,1725456741183,-1527.6,0.00029041,2]
[337153173,1725456741194,-1066.88,0.00029041,2]
[337153174,1725456741205,-1660.38,0.00029041,2]
[337153175,1725456741228,-754.88,0.00029041,2]
[337153176,1725456741238,-1670.02,0.00029041,2]
[337153177,1725456741249,-770.2,0.00029041,2]
[337153178,1725456741259,-1102.43,0.00029041,2]
[337153179,1725456741269,-1127.67,0.00029041,2]
[337153180,1725456741278,-1244.81,0.00029041,2]
[337153181,1725456741288,-500.0,0.00029041,2]
[337153182,1725456741298,-1739.84,0.00029041,2]
[337153183,1725456741308,-500.0,0.00029041,2]
[337153184,1725456741318,-200.0,0.00029041,2]
[337153185,1725456741328,-1099.51,0.00029041,2]
[337153186,1725456741338,-1841.76,0.00029041,2]
[337153187,1725456741347,-1011.14,0.00029041,2]
[337153188,1725456741358,-1093.15,0.00029041,2]
[337153189,1725456741367,-1756.8,0.00029041,2]
[337153190,1725456741376,-1799.48,0.00029041,2]
[337153191,1725456741385,-734.49,0.00029041,2]
[337153192,1725456741396,-500.0,0.00029041,2]
[337153193,1725456741408,-1500.0,0.00029119,5]
[337153194,1725456741417,-500.0,0.00029304,2]
[337153195,1725456741427,-749.82,0.00029304,2]
[337153196,1725456741437,-500.0,0.00029304,2]
[337153197,1725456741447,-500.0,0.00029304,2]
[337153198,1725456741456,-500.0,0.00029304,2]
[337153199,1725456741471,-500.0,0.00029304,2]
[337153200,1725456741480,-500.0,0.00029304,2]
[337153201,1725456741489,-500.0,0.00029304,2]
[337153202,1725456741498,-500.0,0.00029304,2]
[337153203,1725456741507,-500.0,0.00029304,2]
[337153204,1725456741516,-500.0,0.00029304,2]
[337153205,1725456741526,-500.0,0.00029304,2]
[337153206,1725456741535,-500.0,0.00029304,2]
[337153207,1725456741546,-500.0,0.00029304,2]
[337153208,1725456741555,-500.0,0.00029304,2]
[337153209,1725456741564,-500.0,0.00029304,2]
[337153210,1725456741574,-500.0,0.00029304,2]
[337153211,1725456741584,-500.0,0.00029304,2]
[337153212,1725456741593,-500.0,0.00029304,2]
[337153213,1725456741602,-897.69,0.00029314,2]
[337153214,1725456741614,-1356.47,0.00029314,2]
[337153215,1725456741631,-869.49,0.00029314,2]
[337153216,1725456741641,-500.0,0.00029314,2]
[337153217,1725456741651,-500.0,0.00029314,2]
[337153218,1725456741661,-486.2,0.00029314,2]
[337153219,1725456741671,-500.0,0.00029314,2]
[337153220,1725456741680,-500.0,0.00029314,2]
[337153221,1725456741690,-500.0,0.00029314,2]
[337153222,1725456741702,-500.0,0.00029314,2]
[337153223,1725456741713,-500.0,0.00029314,2]
[337153224,1725456741724,-616.0,0.00029314,2]
[337153225,1725456741734,-514.95246133,0.00029314,2]
[337153226,1725456741744,-500.0,0.00029314,2]
[337153227,1725456741753,-1246.01,0.00029314,2]
[337153228,1725456741762,-500.0,0.00029314,2]
[337153229,1725456741772,-500.0,0.00029314,2]
[337153230,1725456741781,-486.17,0.00029314,2]
[337153231,1725456741791,-500.0,0.00029314,2]
[337153232,1725456741802,-649.2,0.00029314,2]
[337153233,1725456741811,-213.48,0.00029314,2]
[337153234,1725456741820,-606.8,0.00029314,2]
[337153235,1725456741829,-2710.57,0.00029315,2]
[337153236,1725456741839,-500.0,0.00029315,2]
[337153237,1725456741848,-1541.42,0.00029315,2]
[337153238,1725456741857,-3258.81,0.00029315,2]
[337153239,1725456741866,-500.0,0.00029315,2]
[337153240,1725456741875,-1264.51,0.00029315,2]
[337153241,1725456741884,-9158.35,0.00029315,2]
[337153242,1725456741893,-284.92,0.00029315,2]
[337153243,1725456741902,-500.0,0.00029315,2]
[337153244,1725456741911,-500.0,0.00029315,2]
[337153245,1725456741920,-633.93,0.00029315,2]
[337153246,1725456741929,-500.0,0.00029315,2]
[337153247,1725456741938,-500.0,0.00029315,2]
[337153248,1725456741947,-584.36,0.00029315,2]
[337153249,1725456741959,-500.0,0.00029315,2]
[337153250,1725456741968,-250.23,0.00029315,2]
[337153251,1725456741978,-542.73,0.00029315,2]
[337153252,1725456741987,-500.0,0.00029315,2]
[337153253,1725456741995,-500.0,0.00029315,2]
[337153254,1725456742005,-500.0,0.00029315,2]
[337153255,1725456742014,-500.0,0.00029315,2]
[337153256,1725456742023,-179.44,0.00029315,2]
[337153257,1725456742033,-500.0,0.00029315,2]
[337153258,1725456742042,-1675.33,0.00029315,2]
[337153259,1725456742051,-500.0,0.00029315,2]
[337153260,1725456742060,-631.13,0.00029315,2]
[337153261,1725456742070,-500.0,0.00029315,2]
[337153262,1725456742079,-250.23,0.00029315,2]
[337153263,1725456742088,-1458.75,0.00029315,2]
[337153264,1725456742097,-338.25,0.00029315,2]
[337153265,1725456742106,-500.0,0.00029315,2]
[337153266,1725456742115,-500.0,0.00029315,2]
[337153267,1725456742124,-552.11,0.00029315,2]
[337153268,1725456742133,-500.0,0.00029315,2]
[337153269,1725456742142,-500.0,0.00029315,2]
[337153270,1725456742154,-500.0,0.00029315,2]
[337153271,1725456742164,-500.0,0.00029315,2]
[337153272,1725456742174,-500.0,0.00029315,2]
[337153273,1725456742183,-500.0,0.00029315,2]
[337153274,1725456742192,-500.0,0.00029315,2]
[337153275,1725456742201,-500.0,0.00029315,2]
[337153276,1725456742214,-500.0,0.00029315,2]
[337153277,1725456742223,-500.0,0.00029315,2]
[337153278,1725456742232,-500.0,0.00029315,2]
[337153279,1725456742241,-500.0,0.00029315,2]
[337153280,1725456742250,-500.0,0.00029315,2]
[337153281,1725456742259,-500.0,0.00029315,2]
[337153282,1725456742268,-600.03,0.00029315,2]
[337153283,1725456742277,-500.0,0.00029315,2]
[337153284,1725456742286,-500.0,0.00029315,2]
[337153285,1725456742296,-500.0,0.00029315,2]
[337153286,1725456742305,-227.05304542,0.00029315,2]
[337153287,1725456742314,-500.0,0.00029315,2]
[337153288,1725456742323,-437.7,0.00029315,2]
[337153289,1725456742333,-381.43,0.00029315,2]
[337153290,1725456742342,-500.0,0.00029315,2]
[337153291,1725456742352,-500.0,0.00029315,2]
[337153292,1725456742361,-500.0,0.00029315,2]
[337153293,1725456742371,-500.0,0.00029315,2]
[337153294,1725456742380,-526.02,0.00029315,2]
[337153295,1725456742390,-500.0,0.00029315,2]
[337153296,1725456742399,-500.0,0.00029315,2]
[337153297,1725456742408,-388.64,0.00029315,2]
[337153298,1725456742417,-500.0,0.00029315,2]
[337153299,1725456742427,-500.0,0.00029315,2]
[337153300,1725456742436,-620.6,0.00029315,2]
[337153301,1725456742445,-500.0,0.00029315,2]
[337153302,1725456742455,-500.0,0.00029315,2]
[337153303,1725456742471,-500.0,0.00029315,2]
[337153304,1725456742481,-500.0,0.00029315,2]
[337153305,1725456742490,-364.06824171,0.00029315,2]
[337153306,1725456742499,-500.0,0.00029315,2]
[337153307,1725456742508,-500.0,0.00029315,2]
[337153308,1725456742517,-500.0,0.00029315,2]
[337153309,1725456742526,-500.0,0.00029315,2]
[337153310,1725456742536,-500.0,0.00029315,2]
[337153311,1725456742545,-500.0,0.00029315,2]
[337153312,1725456742556,-500.0,0.00029315,2]
[337153313,1725456742566,-341.54,0.00029315,2]
[337153314,1725456742576,-500.0,0.00029315,2]
[337153315,1725456742585,-433.57,0.00029315,2]
[337153316,1725456742595,-1094.86,0.00029315,2]
[337153317,1725456742604,-1873.82,0.00029315,2]
[337153318,1725456742615,-3154.32,0.00029315,2]
[337153319,1725456742626,-1197.66,0.00029315,2]
[337153320,1725456742635,-588.3,0.00029315,2]
[337153321,1725456742644,-600.56,0.00029315,2]
[337153322,1725456742655,-991.44,0.00029315,2]
[337153323,1725456742664,-1781.5,0.00029315,2]
[337153324,1725456742674,-500.0,0.00029315,2]
[337153325,1725456742684,-500.0,0.00029315,2]
[337153326,1725456742694,-4543.71,0.00029315,2]
[337153327,1725456742706,-387.28,0.00029315,2]
[337153328,1725456742722,-500.0,0.00029315,2]
[337153329,1725456742731,-500.0,0.00029315,2]
[337153330,1725456742741,-500.0,0.00029315,2]
[337153331,1725456742750,-500.0,0.00029315,2]
[337153332,1725456742760,-500.0,0.00029315,2]
[337153333,1725456742769,-500.0,0.00029315,2]
[337153334,1725456742778,-500.0,0.00029315,2]
[337153335,1725456742787,-500.0,0.00029315,2]
[337153336,1725456742797,-500.0,0.00029315,2]
[337153337,1725456742806,-500.0,0.00029315,2]
[337153338,1725456742815,-500.0,0.00029315,2]
[337153339,1725456742824,-500.0,0.00029315,2]
[337153340,1725456742833,-500.0,0.00029315,2]
[337153341,1725456742843,-500.0,0.00029315,2]
[337153342,1725456742852,-500.0,0.00029315,2]
[337153343,1725456742861,-500.0,0.00029315,2]
[337153344,1725456742870,-500.0,0.00029315,2]
[337153345,1725456742881,-500.0,0.00029315,2]
[337153346,1725456742891,-500.0,0.00029315,2]
[337153347,1725456742900,-500.0,0.00029315,2]
[337153348,1725456742910,-500.0,0.00029315,2]
[337153349,1725456742919,-500.0,0.00029315,2]
[337153350,1725456742928,-500.0,0.00029315,2]
[337153351,1725456742937,-525.77,0.00029315,2]
[337153352,1725456742947,-500.0,0.00029315,2]
[337153353,1725456742956,-500.0,0.00029315,2]
[337153354,1725456742969,-500.0,0.00029315,2]
[337153355,1725456742979,-500.0,0.00029315,2]